bitfinex/quotes_BTCUSD_20241014
["timestamp","ask_amount","ask_price","bid_price","bid_amount"]
[1728913719506,0.153275,65242.0,65238.0,0.005]
[1728913719757,0.459823,65243.0,65238.0,0.005]
[1728913719997,0.57089635,65246.0,65238.0,0.015]
[1728913720245,0.153274,65243.0,65238.0,0.015]
[1728913720477,0.26436335,65241.0,65238.0,0.015]
[1728913720715,0.153282,65239.0,65238.0,0.005]
[1728913721459,0.153294,65234.0,65233.0,0.005]
[1728913721707,0.153303,65230.0,65229.0,0.006648]
[1728913721970,0.41766635,65230.0,65229.0,0.006648]
[1728913722498,0.41766635,65230.0,65229.0,0.001648]
[1728913723248,0.41766635,65230.0,65229.0,0.006648]
[1728913723483,0.41766635,65230.0,65229.0,0.005648]
[1728913724718,0.41966635,65230.0,65229.0,0.000648]
[1728913725164,0.41766635,65230.0,65229.0,0.000648]
[1728913725397,0.41966635,65230.0,65229.0,0.000648]
[1728913725609,1.51545471,65230.0,65229.0,0.000648]
[1728913725833,1.56324335,65230.0,65229.0,0.000648]
[1728913726272,1.76898318,65230.0,65229.0,0.000648]
[1728913726478,1.76898318,65230.0,65213.0,0.23477941]
[1728913726479,0.26436335,65221.0,65213.0,0.23477941]
[1728913726691,0.153332,65218.0,65213.0,0.23477941]
[1728913726901,0.153343,65213.0,65212.0,0.005]
[1728913727108,0.153348,65211.0,65210.0,0.005]
[1728913727323,0.04476527,65234.0,65212.0,0.005]
[1728913727324,0.26436335,65213.0,65212.0,0.005]
[1728913727970,0.26436335,65228.0,65215.0,0.005]
[1728913728182,0.153341,65214.0,65213.0,0.005]
[1728913728395,0.153341,65214.0,65205.0,0.00165]
[1728913728396,0.306673,65216.0,65215.0,0.005]
[1728913728606,0.26436335,65218.0,65211.0,0.005]
[1728913728864,0.306679,65215.0,65210.0,0.005]
[1728913729114,0.306679,65215.0,65211.0,0.005]
[1728913729115,0.26436335,65212.0,65211.0,0.005]
[1728913729328,0.002,65228.0,65211.0,0.005]
[1728913729329,0.306675,65216.0,65212.0,0.005]
[1728913729543,0.26436335,65217.0,65211.0,0.005]
[1728913729753,0.153337,65216.0,65212.0,0.005]
[1728913729962,0.26436335,65217.0,65212.0,0.005]
[1728913730223,0.153342,65214.0,65212.0,0.005]
[1728913730442,0.153342,65214.0,65211.0,0.005]
[1728913730443,0.153346,65212.0,65211.0,0.005]
[1728913730650,0.153346,65212.0,65206.0,0.22977941]
[1728913730651,0.002,65216.0,65210.0,0.005]
[1728913730860,0.41770935,65212.0,65211.0,0.005]
[1728913731279,0.26436335,65212.0,65211.0,0.005]
[1728913731911,0.26436335,65212.0,65209.0,0.005]
[1728913732125,0.306715,65208.0,65205.0,0.23142941]
[1728913732340,0.26436335,65206.0,65205.0,0.23642941]
[1728913732552,0.41772335,65206.0,65205.0,0.00665]
[1728913733205,0.26436335,65206.0,65205.0,0.00665]
[1728913733835,1.075911,65230.0,65209.0,0.153352]
[1728913733836,0.26436335,65214.0,65209.0,0.153352]
[1728913734053,0.15352847,65226.0,65217.0,0.005]
[1728913734054,0.153313,65226.0,65217.0,0.005]
[1728913734265,0.153313,65226.0,65206.0,0.22977941]
[1728913734266,0.000825,65230.0,65229.0,0.153306]
[1728913734480,0.000825,65230.0,65229.0,0.16852847]
[1728913734691,0.000825,65230.0,65229.0,0.32183447]
[1728913737096,0.000825,65230.0,65221.0,0.005]
[1728913737097,0.075,65229.0,65211.0,0.02328828]
[1728913737321,0.075,65229.0,65201.0,0.0901814]
[1728913737322,0.153309,65228.0,65225.0,0.005]
[1728913737540,0.000825,65230.0,65229.0,0.153306]
[1728913737751,0.000825,65230.0,65229.0,0.163306]
[1728913738816,0.000825,65230.0,65229.0,0.178306]
[1728913739297,0.000825,65230.0,65229.0,0.20114279]
[1728913739538,0.000825,65230.0,65229.0,0.35467126]
[1728913739774,0.000825,65230.0,65229.0,0.32183447]
[1728913741250,0.000825,65230.0,65229.0,0.33183447]
[1728913741486,0.000824,65274.0,65255.0,0.01]
[1728913741487,0.00055,65261.0,65255.0,0.01]
[1728913741724,0.00055,65261.0,65256.0,0.30676947]
[1728913741950,0.00055,65261.0,65257.0,0.153238]
[1728913742197,0.00055,65261.0,65257.0,0.15352847]
[1728913742420,0.00055,65261.0,65260.0,0.163233]
[1728913742681,0.00055,65261.0,65260.0,0.31676147]
[1728913744136,0.00055,65261.0,65260.0,0.16352847]
[1728913744378,0.00055,65261.0,65258.0,0.01125915]
[1728913744379,0.153235,65259.0,65258.0,0.01125915]
[1728913744603,0.306466,65260.0,65256.0,0.005]
[1728913744604,0.26436335,65260.0,65256.0,0.005]
[1728913744854,0.153239,65258.0,65256.0,0.005]
[1728913745108,0.153239,65258.0,65255.0,0.005]
[1728913745109,0.15324,65257.0,65252.0,0.01]
[1728913745351,0.00055,65261.0,65253.0,0.15352847]
[1728913745552,0.15324,65257.0,65256.0,0.005]
[1728913745774,0.306471,65259.0,65256.0,0.005]
[1728913746026,0.306471,65259.0,65253.0,0.15352847]
[1728913746235,0.153255,65251.0,65245.0,0.01]
[1728913746476,0.306531,65247.0,65240.0,0.01]
[1728913746697,0.153273,65243.0,65242.0,0.23477941]
[1728913746918,0.153289,65236.0,65235.0,0.22977941]
[1728913747150,0.153289,65236.0,65229.0,0.001648]
[1728913747151,0.153303,65230.0,65229.0,0.001648]
[1728913747453,0.155303,65230.0,65229.0,0.001648]
[1728913747672,1.05095647,65230.0,65229.0,0.001648]
[1728913747903,0.66676892,65230.0,65229.0,0.001648]
[1728913748137,0.00283845,65230.0,65229.0,0.31848247]
[1728913748599,0.306543,65244.0,65236.0,0.005]
[1728913748832,0.57087535,65251.0,65236.0,0.005]
[1728913748833,0.15328,65240.0,65236.0,0.005]
[1728913749072,0.15329,65236.0,65229.0,0.001648]
[1728913749339,0.153294,65234.0,65233.0,0.005]
[1728913749570,0.00352241,65235.0,65229.0,0.001648]
[1728913749571,0.153299,65232.0,65229.0,0.001648]
[1728913749800,0.04558568,65277.0,65234.0,0.1942]
[1728913750023,0.306444,65265.0,65256.0,0.01]
[1728913750242,0.002,65270.0,65248.0,0.41163409]
[1728913750243,0.306468,65260.0,65248.0,0.01]
[1728913750463,0.153245,65255.0,65249.0,0.15352847]
[1728913750680,0.153245,65255.0,65250.0,0.22977941]
[1728913750903,0.153246,65255.0,65250.0,0.22977941]
[1728913751130,0.0793,65265.0,65243.0,0.23977941]
[1728913751346,0.153247,65254.0,65248.0,0.005]
[1728913751567,0.307013,65261.0,65250.0,0.22977941]
[1728913751852,0.00055,65261.0,65248.0,0.16352847]
[1728913752252,0.306483,65257.0,65250.0,0.22977941]
[1728913752465,0.153247,65254.0,65250.0,0.22977941]
[1728913752684,0.00055,65261.0,65250.0,0.22977941]
[1728913752898,0.153246,65255.0,65250.0,0.22977941]
[1728913753118,0.306478,65258.0,65248.0,0.16352847]
[1728913753331,0.00055,65261.0,65244.0,0.01]
[1728913753332,0.306496,65254.0,65244.0,0.01]
[1728913753541,0.153255,65251.0,65248.0,0.005]
[1728913753761,0.307014,65261.0,65243.0,0.22977941]
[1728913753976,0.41163409,65255.0,65242.0,0.005]
[1728913754188,0.306514,65250.0,65246.0,0.22977941]
[1728913754406,0.153263,65247.0,65246.0,0.22977941]
[1728913754625,0.306519,65249.0,65242.0,0.005]
[1728913754840,0.153272,65244.0,65242.0,0.005]
[1728913755057,0.52815809,65274.0,65239.0,0.22977941]
[1728913755058,0.306535,65246.0,65239.0,0.22977941]
[1728913755282,0.002,65257.0,65229.0,0.001648]
[1728913755283,0.153303,65230.0,65229.0,0.001648]
[1728913757386,0.309814,65230.0,65229.0,0.001648]
[1728913757653,0.15628553,65230.0,65229.0,0.001648]
[1728913757865,0.00302253,65230.0,65229.0,0.001648]
[1728913758127,0.15632553,65230.0,65229.0,0.001648]
[1728913758379,0.00302253,65230.0,65229.0,0.001648]
[1728913758649,4e-05,65230.0,65229.0,0.001648]
[1728913758872,0.00378265,65230.0,65229.0,0.001648]
[1728913759116,0.000864,65230.0,65229.0,0.001648]
[1728913759348,0.000864,65230.0,65229.0,0.31848247]
[1728913759674,0.00379526,65230.0,65229.0,0.31848247]
[1728913759871,0.000864,65230.0,65229.0,0.31848247]
[1728913761280,0.000864,65230.0,65229.0,0.32348247]
[1728913761720,0.000864,65230.0,65229.0,0.31848247]
[1728913761984,0.000864,65230.0,65229.0,0.16517647]
[1728913762478,0.000864,65230.0,65229.0,0.001648]
[1728913765509,0.000864,65230.0,65229.0,0.31848247]
[1728913765764,0.000864,65230.0,65229.0,0.16517647]
[1728913766009,0.000864,65230.0,65229.0,0.31848247]
[1728913767409,0.000864,65230.0,65229.0,0.32348247]
[1728913767630,0.000864,65230.0,65229.0,0.93924015]
[1728913767851,0.000864,65230.0,65229.0,0.96179133]
[1728913768300,0.000825,65271.0,65243.0,0.76790709]
[1728913768519,0.000825,65271.0,65243.0,0.9704568]
[1728913768783,0.000825,65271.0,65243.0,0.9684568]
[1728913770655,0.41163409,65262.0,65243.0,0.36382271]
[1728913770892,0.000825,65271.0,65243.0,0.31680147]
[1728913771131,0.000825,65271.0,65243.0,0.74343556]
[1728913771638,0.000825,65271.0,65243.0,0.79243226]
[1728913771866,0.000825,65271.0,65243.0,0.89243226]
[1728913772769,0.000825,65271.0,65243.0,0.98313226]
[1728913773212,0.000825,65271.0,65243.0,0.98113226]
[1728913773856,4e-05,65250.0,65243.0,0.97613226]
[1728913774072,4e-05,65250.0,65243.0,0.92913556]
[1728913774507,4e-05,65250.0,65243.0,0.83343556]
[1728913774736,4e-05,65250.0,65243.0,0.31680147]
[1728913775012,4e-05,65250.0,65243.0,0.32180147]
[1728913777122,4e-05,65250.0,65243.0,0.33180147]
[1728913777364,4e-05,65250.0,65243.0,0.43180147]
[1728913777813,4e-05,65250.0,65243.0,0.48075641]
[1728913778271,4e-05,65250.0,65243.0,0.52578928]
[1728913778489,4e-05,65250.0,65243.0,0.48075641]
[1728913778766,4e-05,65250.0,65243.0,0.5483038]
[1728913779038,4e-05,65250.0,65249.0,0.69189309]
[1728913779272,4e-05,65250.0,65249.0,1.07822156]
[1728913779496,4e-05,65270.0,65260.0,0.273233]
[1728913779723,4e-05,65270.0,65260.0,0.84339556]
[1728913780386,4e-05,65270.0,65260.0,0.8884163]
[1728913780616,4e-05,65270.0,65260.0,0.84339556]
[1728913780833,4e-05,65270.0,65260.0,0.88840132]
[1728913781052,4e-05,65270.0,65260.0,0.89040087]
[1728913781332,4e-05,65270.0,65260.0,0.84539556]
[1728913781564,4e-05,65270.0,65260.0,0.91113057]
[1728913781806,4e-05,65270.0,65260.0,0.86614366]
[1728913782291,4e-05,65270.0,65260.0,0.82839556]
[1728913782587,4e-05,65270.0,65260.0,0.83339556]
[1728913782778,4e-05,65270.0,65260.0,0.31676147]
[1728913783523,4e-05,65270.0,65260.0,0.32676147]
[1728913783788,4e-05,65270.0,65269.0,0.165212]
[1728913784042,4e-05,65270.0,65269.0,0.73837456]
[1728913785762,4e-05,65270.0,65269.0,0.74037456]
[1728913786011,4e-05,65270.0,65269.0,0.73837456]
[1728913787706,4e-05,65270.0,65269.0,0.31674047]
[1728913788963,4e-05,65270.0,65269.0,0.32674047]
[1728913789211,4e-05,65270.0,65269.0,0.43374047]
[1728913789448,4e-05,65270.0,65269.0,0.43174047]
[1728913789892,4e-05,65270.0,65269.0,0.43787347]
[1728913791768,4e-05,65270.0,65269.0,0.43987347]
[1728913792435,4e-05,65270.0,65269.0,0.43787347]
[1728913792670,4e-05,65270.0,65269.0,0.42674047]
[1728913793127,4e-05,65270.0,65269.0,0.42174047]
[1728913794094,4e-05,65270.0,65269.0,0.43174047]
[1728913794964,4e-05,65270.0,65269.0,0.43374047]
[1728913795183,4e-05,65270.0,65269.0,0.43174047]
[1728913795633,1e-06,65271.0,65270.0,0.278209]
[1728913795856,1e-06,65271.0,65270.0,0.43377414]
[1728913796072,1e-06,65271.0,65270.0,0.43173747]
[1728913796299,1e-06,65271.0,65270.0,0.48051233]
[1728913797224,1e-06,65271.0,65270.0,0.43173747]
[1728913797446,1e-06,65271.0,65270.0,0.32673747]
[1728913798439,1e-06,65271.0,65270.0,0.32173747]
[1728913799328,1e-06,65271.0,65270.0,0.36860275]
[1728913799558,1e-06,65271.0,65270.0,0.32173747]
[1728913800539,1e-06,65271.0,65270.0,0.36865473]
[1728913800769,0.000824,65292.0,65273.0,0.168202]
[1728913801007,0.000824,65292.0,65273.0,0.36864773]
[1728913801257,0.000824,65292.0,65273.0,0.37864773]
[1728913801510,0.000824,65292.0,65273.0,0.47864773]
[1728913803467,0.000824,65292.0,65289.0,0.01]
[1728913803701,0.000824,65292.0,65289.0,0.78520482]
[1728913803934,0.000824,65292.0,65289.0,0.88520482]
[1728913804165,0.000824,65292.0,65289.0,0.89020482]
[1728913804881,1e-06,65296.0,65295.0,0.68974509]
[1728913805116,1e-06,65296.0,65295.0,0.89019082]
[1728913805349,1e-06,65296.0,65295.0,0.46355673]
[1728913805628,1e-06,65296.0,65295.0,0.36355673]
[1728913805853,1e-06,65296.0,65295.0,0.36355467]
[1728913806094,1e-06,65296.0,65295.0,0.36855467]
[1728913806324,0.98023779,65300.0,65299.0,0.58973509]
[1728913806325,0.87318262,65300.0,65299.0,0.58973509]
[1728913806563,0.87318262,65300.0,65299.0,0.79017876]
[1728913806790,0.64795608,65300.0,65299.0,0.89017876]
[1728913807026,0.64795608,65300.0,65299.0,0.84326356]
[1728913807265,0.64795608,65300.0,65299.0,0.89013119]
[1728913807501,0.00012,65331.0,65319.0,0.01496]
[1728913807740,0.00012,65331.0,65319.0,0.31658247]
[1728913808934,0.08142591,65320.0,65307.0,0.005]
[1728913809178,0.08142591,65320.0,65308.0,0.23473941]
[1728913809179,0.41163409,65312.0,65308.0,0.23473941]
[1728913809442,0.08142591,65320.0,65311.0,0.15352847]
[1728913809685,0.08142591,65320.0,65315.0,0.00996]
[1728913809960,0.08142591,65320.0,65316.0,0.15352847]
[1728913810225,0.08142591,65320.0,65318.0,0.163055]
[1728913810464,0.08142591,65320.0,65307.0,0.306244]
[1728913810702,0.08142591,65320.0,65311.0,0.22977941]
[1728913810938,0.08142591,65320.0,65316.0,0.00996]
[1728913811170,0.08142591,65320.0,65317.0,0.15352847]
[1728913811405,0.08142591,65320.0,65319.0,0.158054]
[1728913811649,0.08142591,65320.0,65319.0,0.31158247]
[1728913811927,0.00022591,65320.0,65319.0,0.31658247]
[1728913812405,0.00022591,65320.0,65319.0,0.32783782]
[1728913812645,0.14822591,65320.0,65313.0,0.1]
[1728913812873,0.14822591,65320.0,65316.0,0.22977941]
[1728913813111,0.14822591,65320.0,65313.0,0.25352847]
[1728913813416,0.0005,65325.0,65324.0,0.153083]
[1728913813665,0.0005,65325.0,65324.0,0.163043]
[1728913813889,0.0005,65325.0,65324.0,0.31657147]
[1728913814618,0.0005,65325.0,65324.0,0.32157147]
[1728913816280,0.0005,65325.0,65324.0,0.32643898]
[1728913816744,0.07113594,65333.0,65332.0,0.00496]
[1728913816988,0.07113594,65333.0,65332.0,0.31655247]
[1728913817497,0.07113594,65333.0,65328.0,0.153072]
[1728913817727,0.0767,65332.0,65325.0,0.00496]
[1728913817958,0.07113594,65333.0,65332.0,0.163024]
[1728913818186,0.07113594,65333.0,65332.0,0.31655247]
[1728913819150,0.000863,65340.0,65336.0,0.173014]
[1728913819391,0.000863,65340.0,65336.0,0.84517656]
[1728913819622,0.000863,65340.0,65336.0,0.84317656]
[1728913820087,0.000863,65340.0,65336.0,0.31654247]
[1728913820777,0.000863,65340.0,65336.0,0.31154247]
[1728913821067,0.000863,65340.0,65336.0,0.31654247]
[1728913821334,0.000863,65340.0,65336.0,0.15848847]
[1728913821606,0.000863,65340.0,65332.0,0.001646]
[1728913821847,0.08,65336.0,65332.0,0.001646]
[1728913822085,0.41671282,65335.0,65332.0,0.001646]
[1728913822348,0.26365382,65335.0,65332.0,0.001646]
[1728913822619,0.08,65336.0,65332.0,0.001646]
[1728913822841,0.153062,65333.0,65332.0,0.001646]
[1728913823100,0.249262,65333.0,65332.0,0.001646]
[1728913823329,0.251262,65333.0,65332.0,0.001646]
[1728913824044,0.251262,65333.0,65319.0,0.22977941]
[1728913824045,0.306152,65327.0,65319.0,0.22168541]
[1728913824298,0.153076,65327.0,65319.0,0.22168541]
[1728913824527,0.002,65331.0,65319.0,0.22168541]
[1728913824528,0.15308,65326.0,65319.0,0.22168541]
[1728913824758,0.153066,65332.0,65321.0,0.153089]
[1728913824996,0.153074,65328.0,65319.0,0.00996]
[1728913825256,0.002,65328.0,65319.0,0.00496]
[1728913825496,0.0962,65333.0,65319.0,0.00496]
[1728913825740,0.0962,65333.0,65318.0,0.00996]
[1728913825977,0.0962,65333.0,65325.0,0.15308]
[1728913826260,0.0962,65333.0,65322.0,0.306174]
[1728913826261,0.0962,65333.0,65324.0,0.306165]
[1728913826495,0.0962,65333.0,65330.0,0.153068]
[1728913826736,0.08,65336.0,65330.0,0.15352847]
[1728913827435,0.153058,65335.0,65330.0,0.15352847]
[1728913827662,0.30612,65334.0,65323.0,0.00496]
[1728913827897,0.08,65336.0,65327.0,0.23973941]
[1728913828136,0.08,65336.0,65328.0,0.16348847]
[1728913828367,0.08,65336.0,65329.0,0.306142]
[1728913828590,0.08,65336.0,65330.0,0.15352847]
[1728913829706,0.153059,65335.0,65328.0,0.00496]
[1728913829907,0.153057,65335.0,65328.0,0.15848847]
[1728913830118,0.08,65336.0,65328.0,0.15848847]
[1728913830517,0.002,65335.0,65320.0,0.00996]
[1728913830720,0.153106,65314.0,65313.0,0.1]
[1728913830869,0.56611328,65321.0,65320.0,0.22977941]
[1728913831098,0.56611328,65321.0,65313.0,0.1]
[1728913831099,0.56411428,65321.0,65314.0,0.00496]
[1728913831321,0.0978,65326.0,65320.0,0.22977941]
[1728913831529,0.0978,65326.0,65313.0,0.1]
[1728913831530,0.0978,65326.0,65321.0,0.15352847]
[1728913831754,0.153106,65314.0,65313.0,0.1]
[1728913831988,0.231306,65314.0,65313.0,0.1]
[1728913832219,0.41102328,65324.0,65313.0,0.1]
[1728913832457,0.05291782,65340.0,65314.0,0.00485237]
[1728913832458,0.076,65328.0,65314.0,0.00485237]
[1728913832757,0.076,65328.0,65315.0,0.39326788]
[1728913832985,0.076,65328.0,65316.0,0.22977941]
[1728913833209,0.076,65328.0,65321.0,0.153089]
[1728913833439,0.076,65328.0,65317.0,0.306197]
[1728913833670,0.076,65328.0,65320.0,0.153091]
[1728913833905,0.076,65328.0,65320.0,0.15352847]
[1728913834373,0.076,65328.0,65316.0,0.00485428]
[1728913834594,0.076,65328.0,65317.0,0.15838275]
[1728913834821,0.002,65327.0,65317.0,0.15352847]
[1728913835057,0.076,65328.0,65317.0,0.15352847]
[1728913835710,0.002,65319.0,65313.0,0.1]
[1728913835919,0.002,65321.0,65314.0,0.22977941]
[1728913836137,0.158082,65325.0,65314.0,0.22977941]
[1728913836406,0.311162,65325.0,65313.0,0.1]
[1728913836605,0.153093,65320.0,65313.0,0.1]
[1728913836848,0.306185,65320.0,65313.0,0.1]
[1728913837195,0.002,65321.0,65313.0,0.1]
[1728913837196,0.007,65321.0,65313.0,0.1]
[1728913837465,0.002,65315.0,65313.0,0.1]
[1728913837729,0.002,65314.0,65313.0,0.1]
[1728913837873,0.342806,65314.0,65313.0,0.1]
[1728913838073,0.155127,65305.0,65304.0,0.22977941]
[1728913838239,0.153127,65305.0,65304.0,0.22977941]
[1728913838446,0.002,65303.0,65290.0,0.00996]
[1728913838652,0.002,65304.0,65291.0,0.00485639]
[1728913838881,0.306272,65302.0,65288.0,0.00981639]
[1728913839087,0.005,65306.0,65294.0,0.22977941]
[1728913839295,0.005,65306.0,65294.0,0.00496]
[1728913839923,0.005,65306.0,65295.0,0.22977941]
[1728913840557,0.15313,65304.0,65295.0,0.22977941]
[1728913840758,0.005,65306.0,65295.0,0.22977941]
[1728913840972,0.311237,65309.0,65295.0,0.53645688]
[1728913840973,0.005,65309.0,65295.0,0.53645688]
[1728913841410,0.005,65309.0,65295.0,0.38330788]
[1728913842014,0.1827,65314.0,65300.0,0.153138]
[1728913842216,0.005,65312.0,65297.0,0.459436]
[1728913842420,0.005,65312.0,65298.0,0.30667047]
[1728913842630,0.1777,65314.0,65302.0,0.22977941]
[1728913842846,0.1777,65314.0,65306.0,0.22977941]
[1728913843047,0.1777,65314.0,65304.0,0.153129]
[1728913843279,0.1777,65314.0,65305.0,0.15352847]
[1728913844108,0.1777,65314.0,65312.0,0.22977941]
[1728913844336,0.005,65322.0,65305.0,0.15352847]
[1728913844337,0.005,65322.0,65308.0,0.153119]
[1728913844549,0.005,65322.0,65308.0,0.15352847]
[1728913844779,0.005,65319.0,65303.0,0.23473941]
[1728913844998,0.002,65310.0,65303.0,0.22977941]
[1728913845263,0.002,65310.0,65304.0,0.22977941]
[1728913845264,0.005,65309.0,65304.0,0.22977941]
[1728913845528,0.153127,65306.0,65290.0,0.00996]
[1728913845741,0.158118,65309.0,65305.0,0.001646]
[1728913845958,0.153121,65308.0,65305.0,0.001646]
[1728913846164,0.005,65309.0,65305.0,0.001646]
[1728913846165,0.158119,65309.0,65305.0,0.001646]
[1728913846390,0.005,65309.0,65305.0,0.001646]
[1728913846610,0.005,65309.0,65294.0,0.00496]
[1728913846611,0.002,65295.0,65288.0,0.22977941]
[1728913846817,0.005,65300.0,65288.0,0.22977941]
[1728913846818,0.002,65298.0,65288.0,0.22977941]
[1728913847023,0.002,65295.0,65288.0,0.22977941]
[1728913847233,0.41802328,65300.0,65281.0,0.22977941]
[1728913847444,0.72430528,65300.0,65281.0,0.22977941]
[1728913847646,0.41802328,65300.0,65285.0,0.153174]
[1728913847919,0.002,65290.0,65272.0,0.316365]
[1728913848152,0.0768,65288.0,65269.0,0.00996]
[1728913848369,0.005,65285.0,65273.0,0.22977941]
[1728913848592,0.005,65285.0,65272.0,0.153204]
[1728913848593,0.153179,65283.0,65272.0,0.22977941]
[1728913848800,0.005,65285.0,65271.0,0.15517447]
[1728913849460,0.005,65285.0,65272.0,0.153203]
[1728913849666,0.005,65285.0,65271.0,0.15517447]
[1728913849900,0.158175,65285.0,65271.0,0.15517447]
[1728913850358,0.158175,65285.0,65271.0,0.15017447]
[1728913850584,0.005,65285.0,65271.0,0.15017447]
[1728913850804,0.158175,65285.0,65271.0,0.15017447]
[1728913851013,0.153178,65284.0,65271.0,0.15017447]
[1728913851255,0.56420528,65282.0,65271.0,0.15017447]
[1728913851494,0.41102328,65282.0,65271.0,0.15017447]
[1728913852070,0.002,65278.0,65271.0,0.15017447]
[1728913852285,0.41102328,65282.0,65271.0,0.15017447]
[1728913852535,0.56420528,65282.0,65271.0,0.15017447]
[1728913852781,0.153198,65275.0,65266.0,0.001646]
[1728913853030,0.002,65273.0,65266.0,0.001646]
[1728913853266,0.005,65274.0,65266.0,0.001646]
[1728913853267,0.41102328,65271.0,65266.0,0.001646]
[1728913853499,0.153216,65267.0,65266.0,0.001646]
[1728913853766,0.158216,65267.0,65266.0,0.001646]
[1728913854003,0.158216,65267.0,65261.0,0.001646]
[1728913854004,0.160221,65265.0,65261.0,0.001646]
[1728913854245,0.57624428,65265.0,65261.0,0.001646]
[1728913854968,0.165228,65262.0,65261.0,0.001646]
[1728913855214,0.41875647,65262.0,65261.0,0.001646]
[1728913855462,0.41675647,65262.0,65261.0,0.001646]
[1728913856402,0.253228,65262.0,65261.0,0.001646]
[1728913856631,0.258228,65262.0,65261.0,0.001646]
[1728913856854,0.260228,65262.0,65261.0,0.001646]
[1728913857094,0.265228,65262.0,65261.0,0.001646]
[1728913857317,0.258228,65262.0,65261.0,0.001646]
[1728913858078,0.59159647,65262.0,65261.0,0.001646]
[1728913858305,1.23220132,65262.0,65261.0,0.001646]
[1728913858527,1.23220132,65262.0,65249.0,0.00217]
[1728913858528,0.57427928,65250.0,65249.0,0.00217]
[1728913858750,0.72980775,65250.0,65249.0,0.00217]
[1728913859201,0.72980775,65250.0,65247.0,0.001646]
[1728913859202,0.163261,65248.0,65247.0,0.001646]
[1728913859452,0.15328,65240.0,65238.0,0.0018]
[1728913859933,0.56429428,65244.0,65238.0,0.0018]
[1728913860157,0.105,65248.0,65238.0,0.0018]
[1728913860375,0.153278,65241.0,65238.0,0.0018]
[1728913860603,0.153273,65243.0,65238.0,0.0018]
[1728913860827,0.153276,65242.0,65238.0,0.0018]
[1728913861081,0.306543,65244.0,65238.0,0.0018]
[1728913861334,0.15328,65240.0,65238.0,0.0018]
[1728913861588,0.41102328,65250.0,65238.0,0.0018]
[1728913861817,0.153266,65246.0,65238.0,0.0018]
[1728913862041,4e-05,65243.0,65238.0,0.0018]
[1728913862506,0.153278,65241.0,65238.0,0.0018]
[1728913862740,4e-05,65243.0,65238.0,0.0018]
[1728913862961,0.153278,65241.0,65238.0,0.0018]
[1728913863240,4e-05,65243.0,65238.0,0.155083]
[1728913863471,4e-05,65243.0,65240.0,0.15352847]
[1728913863695,4e-05,65243.0,65242.0,0.163235]
[1728913863914,0.306473,65259.0,65250.0,0.00016]
[1728913864148,0.15324,65257.0,65250.0,0.00016]
[1728913864366,4e-05,65262.0,65250.0,0.00016]
[1728913864601,0.153239,65258.0,65250.0,0.00016]
[1728913864850,0.153254,65251.0,65250.0,0.00016]
[1728913865075,0.56427728,65251.0,65250.0,0.00016]
[1728913865309,0.153254,65251.0,65250.0,0.00016]
[1728913865534,0.56927728,65251.0,65250.0,0.00016]
[1728913866046,0.7519723,65251.0,65250.0,0.00016]
[1728913866271,0.70165611,65251.0,65250.0,0.00016]
[1728913867238,0.85518458,65251.0,65250.0,0.00016]
[1728913867743,0.16028,65240.0,65236.0,0.22977941]
[1728913867978,0.42268211,65240.0,65236.0,0.22977941]
[1728913868266,0.52968211,65240.0,65231.0,0.0075]
[1728913868713,0.68321058,65240.0,65231.0,0.0075]
[1728913869161,0.68121058,65240.0,65231.0,0.0075]
[1728913869386,0.68321058,65240.0,65231.0,0.0075]
[1728913869621,1.12750677,65240.0,65231.0,0.0075]
[1728913869838,1.07719058,65240.0,65231.0,0.0075]
[1728913870574,0.165282,65239.0,65231.0,0.0075]
[1728913870798,0.165301,65231.0,65230.0,0.001648]
[1728913871030,0.165301,65231.0,65229.0,0.001648]
[1728913871031,0.341903,65230.0,65229.0,0.001648]
[1728913871257,1.57562147,65230.0,65229.0,0.001648]
[1728913871481,1.71769009,65230.0,65229.0,0.001648]
[1728913872144,1.67522147,65230.0,65229.0,0.001648]
[1728913872366,1.74069009,65230.0,65229.0,0.001648]
[1728913872589,1.69822147,65230.0,65229.0,0.001648]
[1728913872812,1.75969401,65230.0,65229.0,0.001648]
[1728913873089,1.09522947,65230.0,65229.0,0.001648]
[1728913873790,1.12022947,65230.0,65229.0,0.001648]
[1728913874507,1.09722947,65230.0,65229.0,0.001648]
[1728913875271,0.732101,65230.0,65229.0,0.001648]
[1728913875490,0.655501,65230.0,65229.0,0.001648]
[1728913875701,0.153343,65230.0,65229.0,0.001648]
[1728913875914,0.158343,65230.0,65229.0,0.001648]
[1728913876389,0.163343,65230.0,65229.0,0.001648]
[1728913876635,0.153343,65230.0,65229.0,0.001648]
[1728913879658,0.16936417,65230.0,65229.0,0.001648]
[1728913880387,0.17636417,65230.0,65229.0,0.001648]
[1728913880648,0.58906564,65230.0,65229.0,0.001648]
[1728913881818,0.56760664,65230.0,65229.0,0.001648]
[1728913882302,0.59143064,65230.0,65229.0,0.001648]
[1728913883232,0.59143064,65230.0,65205.0,0.00165]
[1728913883233,0.165324,65221.0,65205.0,0.00165]
[1728913883459,0.165324,65221.0,65207.0,0.22977941]
[1728913883460,0.7487232,65221.0,65207.0,0.22977941]
[1728913883950,4.9903932,65221.0,65207.0,0.22977941]
[1728913884196,0.007,65208.0,65207.0,0.22977941]
[1728913884443,0.253371,65201.0,65200.0,0.22977941]
[1728913884662,0.260381,65197.0,65196.0,0.00165]
[1728913884900,1.12357958,65197.0,65196.0,0.00165]
[1728913885358,1.11350958,65197.0,65196.0,0.00165]
[1728913885588,0.153433,65175.0,65174.0,0.22977941]
[1728913886030,0.153435,65174.0,65173.0,0.001646]
[1728913887241,0.153456,65165.0,65164.0,0.001348]
[1728913887479,0.41785811,65165.0,65164.0,0.001348]
[1728913888189,0.42285811,65165.0,65164.0,0.001348]